[Event "Ceske Budejovice GM 2022"]
[Site "Ceske Budejovice"]
[Date "2022.07.01"]
[Round "1.1"]
[White "Omelja, Artem"]
[Black "Sahidi, Samir"]
[Result "0-1"]
[ECO "A05"]
[WhiteElo "2478"]
[BlackElo "2462"]
[Annotator "TA"]
[PlyCount "134"]
[EventDate "2022.07.01"]
[EventType "tourn"]
[EventCountry "CZE"]
[SourceTitle "playchess.com"]
[Source "ChessBase"]
[SourceQuality "1"]
[TimeControl "40/5400+30:1800+30"]

{[%evp 12,134,16,22,37,51,57,40,60,0,0,0,0,-18,6,-20,-8,-26,-2,-3,-3,-10,-10,-3,-9,-11,30,-9,-12,-15,-9,-3,-15,-25,-14,-9,-11,-45,-18,-18,-16,-28,-4,-32,0,-49,-39,-50,-30,-46,-16,-41,-41,-37,-15,-41,-25,-72,-45,-87,-86,-116,-107,-100,-84,-85,-94,-137,-142,-126,-118,-124,-85,-107,-66,-124,-124,-327,-194,-198,-180,-180,-180,-165,-175,-239,-234,-230,-212,-225,-199,-187,-187,-233,-232,-211,-205,-200,-160,-160,-100,-138,-175,-351,-333,-392,-378,-411,-411,-411,-411,-387,-343,-579,-464,-1303,-1235,-552,-1095,-1454,-1438,-1557,-1170,-4606,-2795]} 1. Nf3 {[%emt 0:00:06]} Nf6 {[%emt 0:00:31]} 2. c4 {[%emt 0:00:11]} b6 {[%emt 0:01:31]} 3. d4 {[%emt 0:00:52]} Bb7 {[%emt 0:01:04]} 4. g3 {[%emt 0:00:10]} g6 {[%emt 0:02:54]} 5. Bg2 {[%emt 0:00:10]} Bg7 {[%emt 0:00:06]} 6. O-O {[%emt 0:00:16]} O-O {[%emt 0:02:03]} 7. d5 {[%emt 0:06:01] 7.Re1 is the modern continuation.} c6 {[%emt 0:03:48][%cal Rc6d5] A50: Queen's Fianchetto Defence (1 d4 Nf6 2 c4 b6).} 8. Nc3 {[%emt 0:00:10]} cxd5 {[%emt 0:05:18]} 9. cxd5 {[%emt 0:00:45]} e6 {[%emt 0:00:21][%cal Rf6d5] White is slightly better.} 10. Nd4 {[%emt 0:04:25]} (10. e4 $14) 10... Nxd5 $11 {[%emt 0:09:57]} 11. Nxd5 {[%emt 0:00:10] [#]} exd5 $146 {[%emt 0:00:05]} ({Predecessor:} 11... Bxd5 12. Bxd5 exd5 13. Be3 Nc6 14. Qd2 Re8 15. Rfe1 Qf6 16. Rad1 Re4 17. Nb5 d4 {0-1 (29) Krysa,L (2531)-Akobian,V (2614) Chess.com INT 2020}) 12. b3 {[%emt 0:03:57]} Qe7 {[%emt 0:08:56]} 13. Bb2 {[%emt 0:04:36]} Na6 {[%emt 0:01:31]} 14. Rb1 {[%emt 0:11:55]} Rfe8 {[%emt 0:03:25]} 15. e3 {[%emt 0:03:27]} Nc5 {[%emt 0:01:13]} 16. Nb5 {[%emt 0:06:43]} Bxb2 {[%emt 0:10:20]} 17. Rxb2 {[%emt 0:00:09]} Qe5 {[%emt 0:00:50]} 18. Qd4 {[%emt 0:10:00]} Ba6 {[%emt 0:06:34]} 19. Qxe5 {[%emt 0:00:13]} (19. Bxd5 $5 {[%cal Rd4e5]} Qxd4 20. Nxd4 $14) 19... Rxe5 {[%emt 0:00:12]} 20. a4 {[%emt 0:00:14]} Bxb5 {[%emt 0:09:30]} 21. axb5 {[%emt 0:00:08]} Ne4 {[%emt 0:04:34]} 22. Rc1 {[%emt 0:03:44] Inhibits Nc3.} a5 {[%emt 0:02:02]} 23. bxa6 {[%emt 0:05:45]} Rxa6 {[%emt 0:00:24]} 24. Bf3 {[%emt 0:01:28]} Kg7 {[%emt 0:04:39]} 25. Rd1 {[%emt 0:05:19]} Ra7 {[%emt 0:02:07]} 26. Rd4 {[%emt 0:00:43]} Rc7 {[%emt 0:02:37]} 27. Kg2 {[%emt 0:00:40]} (27. Bxe4 $5 dxe4 28. Rbd2 $11) 27... Kf6 {[%emt 0:03:04]} 28. Rb4 {[%emt 0:00:49]} (28. Bxe4 $11 dxe4 29. Rbd2) 28... Rc6 $15 {[%emt 0:01:18]} 29. Ra2 {[%emt 0:00:33]} h5 {[%emt 0:01:55]} 30. Ra6 {[%emt 0:03:40]} Ree6 {[%emt 0:01:13]} 31. Ra7 {[%emt 0:01:26]} Ke7 {[%emt 0:00:20]} 32. Rd4 {[%emt 0:00:47]} Rcd6 {[%emt 0:02:42]} (32... Kd6 {looks sharper.} 33. Rb7 Re5 34. b4 Nc3) 33. b4 {[%emt 0:01:35]} Re5 {[%emt 0:02:05]} 34. Rd3 {[%emt 0:03:41] Prevents Nc3.} (34. Ra3 $11) 34... Ng5 {[%emt 0:01:16]} 35. Be2 {[%emt 0:09:41]} Ne6 {[%emt 0:00:34]} 36. Ra2 {[%emt 0:02:13]} d4 {[%emt 0:00:59]} 37. exd4 {[%emt 0:00:22]} Rxd4 {[%emt 0:01:00]} (37... Nxd4 {feels hotter.} 38. Bf1 Re1 39. Rb2 Nc6) 38. Rxd4 {[%emt 0:00:17]} Nxd4 $17 {[%emt 0:00:06][%mdl 4096] Endgame KRB-KRN} 39. Bd3 {[%emt 0:00:14]} Nc6 {[%emt 0:00:47]} 40. Rb2 {[%emt 0:00:17]} Rd5 {[%emt 0:01:44]} 41. Bf1 {[%emt 0:31:03]} b5 {[%emt 0:30:31]} 42. Kf3 {[%emt 0:00:39]} Kd6 {[%emt 0:00:00]} 43. Ke3 {[%emt 0:00:00]} ({Better is} 43. Ke4 $15) 43... Ne5 {[%emt 0:00:00] Strongly threatening ...Nc4+. Black is more active.} 44. Ke4 $2 {[%emt 0:00:00]} (44. Ke2 $17 {might work better.}) 44... Ke6 {[%emt 0:00:00]} (44... Nc4 $142 45. Bxc4 bxc4) 45. Be2 {[%emt 0:00:00]} f5+ {[%emt 0:00:00]} 46. Kf4 {[%emt 0:00:00]} Kf6 {[%emt 0:00:00][%cal Od5d3]} 47. Ke3 {[%emt 0:00:00]} Ng4+ $1 {[%emt 0:00:00]} 48. Bxg4 {[%emt 0:00:00]} (48. Kf3 $142) 48... fxg4 $19 {[%emt 0:00:00] KR-KR} 49. Ra2 {[%emt 0:00:00]} Re5+ {[%emt 0:00:00]} 50. Kd4 {[%emt 0:00:00]} Ke6 {[%emt 0:00:00]} 51. Ra6+ {[%emt 0:00:00]} d6 $1 {[%emt 0:00:00] Hoping for ...Re2.} 52. Ra2 {[%emt 0:00:00] Against Re2} (52. Rb6 {is a better defense.}) 52... Rf5 {[%emt 0:00:00]} 53. Re2+ {[%emt 0:00:00]} Kd7 {[%emt 0:00:00]} 54. Rb2 {[%emt 0:00:00]} Rf3 {[%emt 0:00:00]} 55. Ra2 {[%emt 0:00:00]} g5 {[%emt 0:00:00]} (55... Rb3 $142 56. Kd5 Rxb4 57. Ra7+ Kc8 58. Kxd6 Rb2) 56. Kd5 {[%emt 0:00:00] [#]} Rf5+ $1 {[%emt 0:00:00]} 57. Kd4 $2 {[%emt 0:00:00] [#]} (57. Ke4 Ke6 58. Kd4) 57... h4 $1 {[%emt 0:00:00][%cal Bh5h4,Bh4h3][%mdl 32]} 58. Rb2 {[%emt 0:00:00]} h3 {[%emt 0:00:00]} 59. Re2 {[%emt 0:00:52]} Rf3 {[%emt 0:00:00]} 60. Ra2 {[%emt 0:01:27]} Ke6 {[%emt 0:00:00]} 61. Re2+ {[%emt 0:00:28]} Kf5 {[%emt 0:00:00]} 62. Rb2 $2 {[%emt 0:04:19]} (62. Re8 Rb3 63. Kd5 Rxb4 64. Kxd6) 62... Ra3 {[%emt 0:00:00] Black is clearly winning.} 63. Kd5 {[%emt 0:00:07]} (63. Rb1 $142 Ra4 64. Kd5) 63... Ra1 {[%emt 0:00:00] Threatens to win with ...Rh1.} 64. Kc6 {[%emt 0:00:39]} Rh1 {[%emt 0:00:00]} 65. Kxb5 {[%emt 0:00:11]} Rxh2 {[%emt 0:00:00] And now ...Rh1 would win.} 66. Kc6 {[%emt 0:00:04]} Rh1 {[%emt 0:00:00]} 67. Kd7 {[%emt 0:01:46]} Ra1 {[%emt 0:00:00] Weighted Error Value: White=0.24 (precise) /Black=0.12 (very precise)} 0-1

[Event "Ceske Budejovice GM 2022"]
[Site "Ceske Budejovice"]
[Date "2022.07.01"]
[Round "1.2"]
[White "Kraus, Tomas"]
[Black "Stefansson, Hannes"]
[Result "1-0"]
[ECO "E00"]
[WhiteElo "2488"]
[BlackElo "2541"]
[Annotator "TA"]
[PlyCount "117"]
[EventDate "2022.07.01"]
[EventType "tourn"]
[EventCountry "CZE"]
[SourceTitle "playchess.com"]
[Source "ChessBase"]
[SourceQuality "1"]
[TimeControl "40/5400+30:1800+30"]

{[%evp 9,117,-2,0,-41,-25,-45,0,0,4,0,10,-29,24,29,24,31,20,32,43,53,43,42,71,68,85,53,87,112,119,120,161,164,154,156,152,119,138,116,116,113,164,168,180,189,216,214,220,0,192,0,217,227,265,264,332,160,159,168,166,137,127,0,177,185,205,211,213,123,114,95,101,87,91,77,184,168,199,211,254,231,495,474,1857,1764,1128,501,608,608,548,292,433,407,423,419,458,488,737,722,707,683,671,646,779,652,559,540,1050,1049,29998,29999]} 1. d4 {[%emt 0:00:06]} Nf6 {[%emt 0:00:14]} 2. c4 {[%emt 0:00:37]} e6 {[%emt 0:00:15]} 3. Bf4 {[%emt 0:01:34]} d5 {[%emt 0:04:02]} 4. cxd5 {[%emt 0:00:29]} Nxd5 {[%emt 0:05:12]} 5. Bg3 {[%emt 0:00:07]} c5 {[%emt 0:00:45]} 6. e4 {[%emt 0:00:11][%cal Be2e4,Be4e5][%mdl 32] A50: Queen's Fianchetto Defence (1 d4 Nf6 2 c4 b6).} Nf6 {[%emt 0:02:54][%csl LRd4,LRe4]} 7. Nd2 {[%emt 0:00:13]} cxd4 {[%emt 0:03:05]} (7... Qxd4 $15 {might be stronger.} 8. Ngf3 Qd8) 8. e5 $11 {[%emt 0:01:54] The position is equal.} Nd5 {[%emt 0:02:35]} 9. Ngf3 {[%emt 0:00:29] [#]} Nd7 $146 {[%emt 0:10:52]} ({Predecessor:} 9... Nc6 10. a3 Be7 11. Rc1 O-O 12. Bd3 f5 13. exf6 gxf6 14. Rxc6 bxc6 15. Nxd4 Qe8 {0-1 (35) Materia,M (2398)-Milikow,Y (2383) Heraklion 2022}) 10. Nxd4 {[%emt 0:08:14]} Nc5 {[%emt 0:06:24]} (10... Qb6 $142 11. Nb5 a6 12. Nd6+ Bxd6 13. exd6 Qxb2) 11. Be2 {[%emt 0:09:57]} Be7 {[%emt 0:02:00][%cal Od5f4]} 12. O-O {[%emt 0:03:03]} O-O {[%emt 0:00:13]} 13. Bf3 {[%emt 0:06:46]} Bd7 {[%emt 0:03:47]} 14. Nc4 {[%emt 0:03:59]} Rc8 {[%emt 0:02:12]} 15. Qe2 {[%emt 0:09:32]} b5 {[%emt 0:02:14]} 16. Bxd5 {[%emt 0:06:20]} bxc4 {[%emt 0:06:29]} 17. Bxc4 {[%emt 0:00:50]} Ne4 {[%emt 0:00:37]} 18. Bf4 {[%emt 0:01:50]} Nc5 {[%emt 0:06:36]} 19. Rfd1 {[%emt 0:02:08]} Bg5 {[%emt 0:02:22]} 20. Bxg5 {[%emt 0:08:44]} Qxg5 {[%emt 0:00:07]} 21. b3 {[%emt 0:00:44]} Rfd8 {[%emt 0:00:54]} 22. Rac1 {[%emt 0:03:16]} Be8 {[%emt 0:04:46][%cal Od8d4]} 23. Nf3 {[%emt 0:04:17]} Qe7 {[%emt 0:01:12]} 24. Rxd8 {[%emt 0:04:15]} Rxd8 {[%emt 0:00:06]} (24... Qxd8 $16 {was worth a try.} 25. Qe3 Nd7) 25. Qe3 $18 {[%emt 0:00:20]} a5 {[%emt 0:02:17]} 26. h3 {[%emt 0:03:18]} h6 {[%emt 0:00:54]} 27. Be2 {[%emt 0:01:30]} Rd5 {[%emt 0:03:24]} 28. Bc4 {[%emt 0:00:07]} Rd8 {[%emt 0:00:10]} 29. Be2 {[%emt 0:00:05]} Rd5 {[%emt 0:00:06]} 30. Nd2 {[%emt 0:00:32]} Qd8 {[%emt 0:03:10]} 31. Nc4 {[%emt 0:02:29] [#] Threatens to win with Nd6.} (31. Rxc5 $6 Rxc5 32. Qxc5 Qxd2 $16) 31... Nd3 {[%emt 0:01:36]} 32. Bxd3 {[%emt 0:05:10]} (32. Rc3 $18 {and the rest is easy.} Nb4 33. Nb6) 32... Rxd3 $16 {[%emt 0:00:08]} 33. Qe4 {[%emt 0:01:58] aiming for Nd6.} Rd4 {[%emt 0:03:41]} 34. Qf3 {[%emt 0:00:35]} Rd5 {[%emt 0:02:15]} 35. Qe3 {[%emt 0:03:15]} (35. Rc3 $16) 35... Rd3 $1 $18 {[%emt 0:02:25]} 36. Qe1 {[%emt 0:01:08]} Bc6 {[%emt 0:02:57] [#]} 37. Nd6 $1 {[%emt 0:03:25]} (37. Nxa5 Bd5 $11) 37... Bd7 {[%emt 0:08:47]} 38. Rd1 {[%emt 0:03:14]} (38. Rc5 $18) 38... Rd5 $16 {[%emt 0:01:26]} 39. Rxd5 {[%emt 0:01:25]} exd5 {[%emt 0:00:07][%mdl 4096] Endgame KQB-KQN} 40. Qd2 {[%emt 0:01:25]} (40. Qe3 {feels hotter.} Qc7 41. a4 Qc2 42. Qf3) 40... Qc7 {[%emt 0:01:03]} 41. a3 {[%emt 0:04:44][%cal Ba2a3,Ba3b4][%mdl 32] White is more active.} ({Reject} 41. Qxd5 $6 Qc1+ 42. Kh2 Qf4+ 43. g3 (43. Kg1 Qc1+ 44. Kh2 Qf4+ 45. g3 Qxf2+ 46. Qg2 Qc5 $11) 43... Qxf2+ 44. Qg2 Qc5 $11) 41... Be6 {[%emt 0:04:53]} (41... d4 $16) 42. b4 $36 {[%emt 0:01:55][%mdl 2048] Strongly threatening Qd4. Black is under strong pressure.} axb4 {[%emt 0:00:12]} 43. axb4 {[%emt 0:01:03]} Qa7 {[%emt 0:01:58] Against Qd4. Hoping for ...Qa1+.} 44. Kh2 {[%emt 0:01:51]} g5 $2 {[%emt 0:04:28]} (44... Qa1 {keeps fighting.}) 45. f4 {[%emt 0:02:45]} gxf4 {[%emt 0:03:54]} (45... f6 $142 46. f5 (46. exf6 Qd7 $11) 46... Qe7 47. fxe6 Qxe6) 46. Qxf4 {[%emt 0:00:08]} Qa1 {[%emt 0:00:08]} 47. Nb5 {[%emt 0:02:59]} (47. b5 $142) 47... Qb1 {[%emt 0:00:52]} 48. Nd4 {[%emt 0:00:33]} Bd7 {[%emt 0:00:30]} 49. Ne2 {[%emt 0:07:10]} Qc2 {[%emt 0:02:38]} (49... Qg6 {was necessary.} 50. Nd4 Qa6 51. Qg3+ (51. e6 fxe6 52. Nf3 Be8 $18) 51... Kh8) 50. Ng3 {[%emt 0:01:01] And now Qf6 would win.} Qg6 {[%emt 0:00:57]} 51. Qd4 {[%emt 0:00:56]} Qc6 {[%emt 0:00:27]} 52. Nh5 {[%emt 0:01:14][%cal Oe5e6] e6! is the strong threat.} Be6 {[%emt 0:01:13]} (52... Kf8 $142 53. Nf6 Bc8) 53. Nf6+ {[%emt 0:00:57]} Kf8 {[%emt 0:00:33]} 54. Qf4 {[%emt 0:02:10]} Ke7 {[%emt 0:00:21]} 55. Qxh6 {[%emt 0:02:13]} Kd8 {[%emt 0:00:56]} 56. Qf8+ {[%emt 0:01:07]} Kc7 {[%emt 0:00:05]} 57. Ne8+ {[%emt 0:01:00]} Kb6 {[%emt 0:00:42]} 58. Nd6 {[%emt 0:00:33] Inhibits Qc4. Qb8+ would kill now.} Qa4 {[%emt 0:03:48]} 59. Qb8+ {[%emt 0:00:24] Weighted Error Value: White=0.35/Black=0.38} 1-0

[Event "Ceske Budejovice GM 2022"]
[Site "Ceske Budejovice"]
[Date "2022.07.01"]
[Round "1.3"]
[White "Gazik, Viktor"]
[Black "Malinovsky, Karel"]
[Result "1/2-1/2"]
[ECO "C55"]
[WhiteElo "2544"]
[BlackElo "2463"]
[Annotator "TA"]
[PlyCount "79"]
[EventDate "2022.07.01"]
[EventType "tourn"]
[EventCountry "CZE"]
[SourceTitle "playchess.com"]
[Source "ChessBase"]
[SourceQuality "1"]
[TimeControl "40/5400+30:1800+30"]

{[%evp 13,79,30,33,32,33,31,30,26,29,22,31,23,31,23,22,20,39,6,10,14,11,0,5,6,6,14,10,0,9,-13,-11,-14,-6,-89,-32,-35,0,-152,0,-119,6,-41,-57,-56,-42,-124,-118,-93,-64,-143,-121,-439,0,0,0,-410,-320,-337,-339,-339,-318,-325,-324,-308,-308,-292,0,-66]} 1. e4 {[%emt 0:00:03]} e5 {[%emt 0:00:09]} 2. Nf3 {[%emt 0:00:07]} Nc6 {[%emt 0:00:06]} 3. Bc4 {[%emt 0:00:05]} Nf6 {[%emt 0:00:33]} 4. d3 {[%emt 0:00:04]} Be7 {[%emt 0:00:14]} 5. O-O {[%emt 0:00:08]} O-O {[%emt 0:00:10]} 6. Re1 {[%emt 0:00:06]} d6 {[%emt 0:00:27]} 7. a4 {[%emt 0:00:06]} Na5 {[%emt 0:00:44]} 8. Ba2 {[%emt 0:00:06] C55: Two Knights: 4 d3, 4 d4 exd4 5 e5 and Max Lange Attack.} c5 {[%emt 0:00:25]} 9. c3 {[%emt 0:00:11]} Nc6 {[%emt 0:00:36]} 10. Na3 {[%emt 0:05:25] White has an edge.} a6 {[%emt 0:06:48]} 11. Bd2 {[%emt 0:03:08]} h6 {[%emt 0:02:24]} 12. h3 {[%emt 0:09:25]} Rb8 {[%emt 0:05:56]} 13. b4 {[%emt 0:19:14]} cxb4 {[%emt 0:09:35]} 14. cxb4 {[%emt 0:00:05]} b5 {[%emt 0:00:06] [#]} 15. Qc2 $146 {[%emt 0:10:48]} ({Predecessor:} 15. Rc1 Bd7 16. axb5 axb5 17. Nc2 Be6 18. Bxe6 fxe6 19. Ne3 Qd7 20. Qb3 Rfc8 21. Ng4 Nxg4 22. hxg4 {1-0 (30) Eljanov,P (2672)-Postny,E (2587) Chess.com INT 2021}) 15... Bd7 {[%emt 0:03:34]} 16. axb5 {[%emt 0:00:25]} axb5 {[%emt 0:00:14]} 17. Qb2 {[%emt 0:01:06]} (17. Rac1 {feels hotter.} Qb6 18. Qb2 Bd8 19. Nc2) 17... Be6 {[%emt 0:10:59]} 18. Bxe6 {[%emt 0:06:48]} fxe6 {[%emt 0:00:12]} 19. Nc2 {[%emt 0:00:04]} Qd7 {[%emt 0:22:52]} 20. Qb3 {[%emt 0:12:26]} Bd8 {[%emt 0:06:14]} 21. Ra6 {[%emt 0:06:54]} Bb6 {[%emt 0:04:52]} 22. Be3 {[%emt 0:01:14]} Bxe3 {[%emt 0:00:11]} 23. Nxe3 {[%emt 0:00:02]} (23. Rxe3 $11 Ra8 24. Rxa8 Rxa8 25. Re1) 23... Rbc8 {[%emt 0:01:44]} (23... Nh5 $1 $17 {[%cal Of8f3]} 24. Rc1 Rbc8 25. Rcxc6 Rxc6 26. Rxc6 Qxc6 27. Qxe6+ Kh7) 24. Rea1 {[%emt 0:06:07]} Nh7 {[%emt 0:05:10][%cal Of8f3] Hoping for ...Rxf3!} 25. Qb2 $2 {[%emt 0:10:35] [#]} (25. Qd1 $11) 25... Nf6 $2 {[%emt 0:07:22]} (25... Rxf3 $1 $17 {[%mdl 512]} 26. gxf3 Ng5) 26. Rb6 {[%emt 0:01:30] [#]} (26. Qb3 $11 {remains equal.}) 26... Rb8 {[%emt 0:01:57]} (26... Nh5 $1 $17 {[%cal Of8f3] And now ...Rxf3! would win.} 27. Rxb5 Nf4) 27. Raa6 {[%emt 0:03:56]} (27. Rxb8 $1 $11 Rxb8 28. Qc3) 27... Rxb6 $15 {[%emt 0:00:31]} 28. Rxb6 {[%emt 0:00:01]} Nh5 $1 {[%emt 0:02:57][%cal Bf6h5,Bh5f4,Bf4h3][%mdl 32]} 29. Rxb5 {[%emt 0:02:33]} (29. Qc2 $15 Nd4 30. Nxd4 exd4 31. Nf1) 29... Nf4 $17 {[%emt 0:00:28]} 30. Rb6 {[%emt 0:00:38]} Nxh3+ {[%emt 0:03:43]} 31. Kh2 {[%emt 0:02:02]} (31. gxh3 $15 Rxf3 32. Qc3) 31... Nf4 {[%emt 0:01:20] ...Nd4 is the strong threat.} 32. b5 $2 {[%emt 0:00:06][%mdl 8192] [#]} (32. Nf1 $17) 32... Ne7 $2 {[%emt 0:01:03]} (32... Nd4 $1 $19 {[%cal Rd4f3]} 33. Nxd4 exd4) 33. Qa3 $11 {[%emt 0:00:54]} Qe8 {[%emt 0:01:09]} 34. Rxd6 $2 {[%emt 0:00:27][%mdl 8192]} ({Don't go for} 34. Qxd6 $2 Nc8 35. Qxf8+ Qxf8 $19) (34. Kg1 $1 $11 {and White has nothing to worry.}) 34... Qh5+ {[%emt 0:00:17]} 35. Kg1 {[%emt 0:00:02] [#] Strongly threatening Rd7.} Nxg2 $1 {[%emt 0:00:37][%mdl 576] Remove Defender} 36. Nxg2 {[%emt 0:00:27]} Qxf3 {[%emt 0:00:06]} 37. Qa2 {[%emt 0:00:40]} Qd1+ {[%emt 0:01:18]} 38. Kh2 {[%emt 0:00:01]} Qh5+ {[%emt 0:00:56]} 39. Kg1 {[%emt 0:00:04]} Qd1+ $2 {[%emt 0:00:23]} ({Better is} 39... Ng6 $19 40. Rxe6 Kh7 41. Rxg6 Qxg6) 40. Kh2 {[%emt 0:00:04] Weighted Error Value: White=0.56/Black=0.64} 1/2-1/2

[Event "Ceske Budejovice GM 2022"]
[Site "Ceske Budejovice"]
[Date "2022.07.01"]
[Round "1.4"]
[White "Morgunov, Marc"]
[Black "Donchenko, Alexander"]
[Result "1-0"]
[ECO "B91"]
[WhiteElo "2376"]
[BlackElo "2640"]
[Annotator "TA"]
[PlyCount "129"]
[EventDate "2022.07.01"]
[EventType "tourn"]
[EventCountry "CZE"]
[SourceTitle "playchess.com"]
[Source "ChessBase"]
[SourceQuality "1"]
[TimeControl "40/5400+30:1800+30"]

{[%evp 17,129,20,29,17,6,14,18,7,6,-52,-25,-22,29,0,40,7,67,-8,0,-22,0,0,74,15,74,75,75,68,56,66,178,187,293,201,199,59,52,83,402,400,395,388,548,541,536,530,513,511,472,181,181,181,181,182,182,166,166,166,255,152,152,152,152,159,166,125,192,118,292,285,451,451,445,397,443,441,444,442,442,431,429,422,463,440,436,432,445,447,434,411,432,397,594,554,762,675,1044,1033,968,776,29940,10714,29962,29964,29970,29972,29971,29972,29972,29973,29975,29976,29972,29959]} 1. e4 {[%emt 0:00:06]} c5 {[%emt 0:00:14]} 2. Nf3 {[%emt 0:00:06]} d6 {[%emt 0:00:07]} 3. d4 {[%emt 0:00:13]} cxd4 {[%emt 0:00:07]} 4. Nxd4 {[%emt 0:00:03]} Nf6 {[%emt 0:00:09]} 5. Nc3 {[%emt 0:00:04]} a6 {[%emt 0:00:07]} 6. g3 {[%emt 0:00:51]} g6 {[%emt 0:02:17]} 7. Bg2 {[%emt 0:02:01]} Bg7 {[%emt 0:00:22]} 8. O-O {[%emt 0:00:57]} O-O {[%emt 0:00:19]} 9. h3 {[%emt 0:04:58]} Nc6 {[%emt 0:02:05]} 10. Nb3 {[%emt 0:07:57] B91: Sicilian Najdorf: 6 g3.} Bd7 {[%emt 0:06:44]} 11. f4 {[%emt 0:07:05]} b5 {[%emt 0:06:30][%cal Bb7b5,Bb5b4][%mdl 32]} (11... Na5 {is more complex.} 12. e5 Ne8 13. Qe2 Bc6) 12. Be3 {[%emt 0:04:34] The position is equal.} Rc8 {[%emt 0:12:59] [#]} 13. Qd2 $146 {[%emt 0:06:55]} (13. g4 $11) ({Predecessor:} 13. a3 Qc7 14. Qe1 Be6 15. Nd5 Bxd5 16. exd5 Nb8 17. Nd4 Qb7 18. Rd1 Nxd5 19. Ne2 {½-½ (48) Morgunov,D (2328)-Vatsal,S (2128) Porto Carras 2018}) 13... b4 {[%emt 0:16:12]} 14. Na4 {[%emt 0:07:39]} Rb8 {[%emt 0:01:56]} (14... Na5 $142 15. Nxa5 (15. Qxb4 Nc4 $17) 15... Qxa5) 15. Qf2 {[%emt 0:02:25]} Qc7 {[%emt 0:05:49]} 16. Rfd1 {[%emt 0:05:55]} Be6 {[%emt 0:04:23]} (16... Nd8 $11 17. Nb6 Bc6) 17. g4 {[%emt 0:06:54]} (17. c4 $14) 17... Nd7 {[%emt 0:05:38]} 18. Bf1 {[%emt 0:08:39]} Nf6 {[%emt 0:01:41]} (18... Na5 $5 {[%cal Re6c4]}) 19. Bg2 {[%emt 0:02:17][%cal Oc2c4]} Kh8 {[%emt 0:05:00]} (19... h5 $11 20. e5 dxe5) 20. Rac1 {[%emt 0:04:16]} ({White should play} 20. c4 $16) 20... Nd7 {[%emt 0:02:51]} (20... Bxg4 $1 $11 21. hxg4 Nxg4) 21. c4 {[%emt 0:02:56]} bxc3 {[%emt 0:01:46]} 22. Nxc3 {[%emt 0:00:04] aiming for Nd5.} Bxb3 {[%emt 0:04:15]} 23. axb3 {[%emt 0:00:04]} Rfc8 {[%emt 0:00:05]} ({Black should try} 23... Rxb3 $14 24. e5 Nb4) 24. e5 $1 $18 {[%emt 0:01:58]} Rxb3 {[%emt 0:07:50]} (24... dxe5 25. Ne2 Qb7 26. fxe5) (24... Qb7 $142 25. exd6 e6) 25. exd6 {[%emt 0:06:58]} exd6 {[%emt 0:00:17][%cal Od7c5]} 26. Nb5 {[%emt 0:01:13]} axb5 $14 {[%emt 0:02:15]} 27. Rxc6 {[%emt 0:00:05]} Qd8 {[%emt 0:00:52][%mdl 8192]} (27... Qxc6 $16 {is tougher.} 28. Bxc6 Rxc6) 28. Rcxd6 $18 {[%emt 0:00:41]} Qe8 {[%emt 0:00:08]} 29. Bd4 {[%emt 0:01:01] This bishop pair is nice.} (29. Rxd7 Rxe3 30. Bb7 Rb8 $11) 29... Nf8 {[%emt 0:03:53]} (29... Rc7 {is a better defense.} 30. Bxg7+ Kxg7) 30. Re1 {[%emt 0:01:08]} Ne6 {[%emt 0:00:03]} 31. Bxg7+ {[%emt 0:00:05]} Kxg7 {[%emt 0:00:04]} 32. f5 {[%emt 0:00:34]} Qf8 {[%emt 0:00:45]} 33. fxe6 $2 {[%emt 0:05:31]} Qxd6 {[%emt 0:00:06]} 34. Qxf7+ {[%emt 0:00:05]} Kh6 {[%emt 0:00:05]} 35. e7 {[%emt 0:00:04]} Rxh3 {[%emt 0:08:39]} 36. e8=Q {[%emt 0:02:27] Dancing on a razor blade.} ({Don't take} 36. g5+ $6 Kxg5 37. e8=Q Rxe8 38. Rxe8 (38. Qxe8 Qc5+ 39. Kf1 Qf5+ 40. Kg1 Qc5+ 41. Kf1 Qf5+ 42. Kg1 Qc5+ $11) 38... Qc5+ 39. Kf1 (39. Qf2 Qxf2+ 40. Kxf2 Rb3 $16) 39... Rh4 40. Qd5+ Qxd5 41. Bxd5 Rf4+ 42. Kg2 Rd4 $16) 36... Rxe8 {[%emt 0:00:08]} 37. Rxe8 {[%emt 0:00:17]} ({Inferior is} 37. Qxe8 Qd4+ 38. Kf1 Qf4+ 39. Kg1 Qd4+ 40. Kf1 Qf4+ 41. Kg1 Qd4+ $11) 37... Rd3 {[%emt 0:01:22]} (37... Rg3 $142 38. Re4 Qd1+ 39. Qf1 Qxf1+ 40. Kxf1 Rb3) 38. Qf8+ {[%emt 0:02:25]} (38. Qf2 $18) 38... Qxf8 $16 {[%emt 0:00:02]} 39. Rxf8 {[%emt 0:00:05][%mdl 4096] Endgame Rf3 is the strong threat. KRB-KR} Kg5 {[%emt 0:00:12] [#]} 40. Rf3 $1 {[%emt 0:00:04]} Rd1+ {[%emt 0:01:38]} 41. Kh2 {[%emt 0:30:08] Hoping for Rb3.} Rd4 {[%emt 0:01:47] [#]} (41... Kxg4 $16 42. Rb3 Rd4 43. Rxb5 g5) 42. Rb3 {[%emt 0:00:00]} (42. Rg3 $1 $18) 42... b4 $2 {[%emt 0:00:16]} (42... Kxg4 $16 {was worth a try.} 43. Rxb5 g5) 43. Bf3 $18 {[%emt 0:00:00]} Kf4 {[%emt 0:01:27]} (43... h5 {was necessary.} 44. gxh5 gxh5) 44. Kg2 {[%emt 0:00:00]} Rd2+ {[%emt 0:07:55]} 45. Kf1 {[%emt 0:00:00]} Rd4 {[%emt 0:00:03]} 46. Kf2 {[%emt 0:00:00]} Rd2+ {[%emt 0:00:47]} 47. Be2 {[%emt 0:00:00]} Rd4 {[%emt 0:00:03]} 48. Rf3+ {[%emt 0:00:00]} Kg5 {[%emt 0:00:14]} 49. Rh3 {[%emt 0:00:00]} Rd2 {[%emt 0:00:24]} 50. Rb3 {[%emt 0:00:00]} Rd4 {[%emt 0:00:20]} 51. Ke3 {[%emt 0:00:00]} Rf4 {[%emt 0:00:07]} 52. Rd3 {[%emt 0:00:00] And now Rd5+ would win.} Rf6 {[%emt 0:00:16]} 53. Rd4 {[%emt 0:00:00]} Rb6 {[%emt 0:00:19]} 54. b3 {[%emt 0:00:00]} Kh4 {[%emt 0:00:13]} (54... Kf6 {might work better.} 55. Kf4 g5+ 56. Ke4 Re6+ 57. Kf3 Rb6) 55. Kd3 {[%emt 0:00:00]} Kg3 {[%emt 0:00:35]} 56. Kc4 {[%emt 0:00:00]} Kf2 {[%emt 0:01:15]} 57. Kc5 {[%emt 0:00:00]} Rb8 {[%emt 0:00:16]} 58. Ba6 {[%emt 0:00:00]} h5 {[%emt 0:00:10]} 59. gxh5 {[%emt 0:00:00]} gxh5 {[%emt 0:00:03]} 60. Rxb4 {[%emt 0:00:00] White mates.} Rh8 {[%emt 0:00:36]} 61. Rh4 {[%emt 0:00:00]} Kg3 {[%emt 0:00:04]} 62. Rh1 {[%emt 0:00:00]} h4 {[%emt 0:00:05]} 63. Bb7 {[%emt 0:00:00]} h3 {[%emt 0:00:44]} 64. b4 {[%emt 0:00:00][%cal Bb3b4,Bb4b5][%mdl 32]} h2 {[%emt 0:00:43]} 65. b5 {[%emt 0:00:05] Weighted Error Value: White=0.26 (precise) /Black=0.74} 1-0